bitfinex/quotes_ETHUSD_20250803
["timestamp","ask_amount","ask_price","bid_price","bid_amount"]
[1754238896565,0.001,3489.5,3489.4,5.65442599]
[1754238896766,0.001,3489.5,3489.4,6.11182599]
[1754238898353,0.001,3489.5,3489.4,5.65442599]
[1754238898667,0.001,3489.5,3489.4,5.10442599]
[1754238898877,0.001,3489.5,3489.4,5.65442599]
[1754238899204,0.001,3489.5,3489.4,5.0972]
[1754238900191,0.001,3489.5,3489.4,4.5472]
[1754238900487,0.001,3489.5,3489.4,4.404]
[1754238900864,0.001,3489.5,3489.4,5.5546]
[1754238901191,0.001,3489.5,3489.4,6.416162]
[1754238901365,0.001,3489.5,3489.4,7.0577782]
[1754238901699,0.001,3489.5,3489.4,6.6013782]
[1754238903478,0.001,3489.5,3489.4,7.0587782]
[1754238904106,0.001,3489.5,3489.4,6.6013782]
[1754238904265,0.001,3489.5,3489.4,7.0587782]
[1754238905099,0.001,3489.6,3489.4,7.0587782]
[1754238905100,0.001,3489.6,3489.5,0.55]
[1754238905397,0.001,3489.8,3489.7,0.55]
[1754238905574,0.001,3489.8,3489.7,4.98165575]
[1754238905776,0.001,3489.8,3489.7,5.43905575]
[1754238906267,0.001,3489.8,3489.7,5.58225575]
[1754238906474,0.001,3489.8,3489.7,8.20786099]
[1754238906673,0.001,3489.8,3489.7,8.97299799]
[1754238911083,0.001,3489.8,3489.7,3.56259799]
[1754238911282,0.001,3489.8,3489.7,5.33599275]
[1754238911994,0.927,3489.8,3489.7,5.307337]
[1754238912622,0.001,3489.8,3489.7,5.307337]
[1754238913568,0.927,3489.8,3489.7,5.307337]
[1754238913876,0.927,3489.8,3489.7,0.765137]
[1754238914080,0.927,3489.8,3489.7,5.164137]
[1754238914609,0.927,3489.8,3489.7,0.765137]
[1754238914764,0.927,3489.8,3489.7,4.398]
[1754238914962,0.001,3489.8,3489.7,4.398]
[1754238915165,0.001,3489.8,3489.7,6.68238702]
[1754238915365,0.4633,3489.8,3489.7,6.68238702]
[1754238916586,0.4633,3489.8,3489.7,7.54392302]
[1754238916778,0.001,3489.8,3489.7,8.09392302]
[1754238917468,0.001,3489.8,3489.7,5.952736]
[1754238919194,0.001,3489.8,3489.7,6.410136]
[1754238919373,0.001,3489.8,3489.7,26.55621634]
[1754238919570,0.4623,3490.7,3489.8,0.55]
[1754238919781,0.4623,3490.7,3489.9,4.43865411]
[1754238920124,0.4623,3490.7,3490.5,0.1432]
[1754238920332,0.4623,3490.7,3490.6,4.41]
[1754238920623,0.926,3490.7,3490.6,4.41]
[1754238921717,6.889,3492.3,3490.6,4.43864836]
[1754238922013,0.4623,3491.1,3490.7,0.55]
[1754238922260,0.4623,3491.1,3490.8,4.94983156]
[1754238922443,0.4637,3491.2,3490.9,0.1432]
[1754238922768,1.04963937,3491.0,3490.9,0.1432]
[1754238923118,1.04963937,3491.0,3490.9,4.409]
[1754238923753,1.04963937,3491.0,3490.4,0.1432]
[1754238923958,0.926,3490.9,3490.5,4.411]
[1754238924158,0.12363937,3491.0,3490.5,4.411]
[1754238924159,0.4623,3490.8,3490.5,4.411]
[1754238924333,0.12363937,3491.0,3490.5,4.86642]
[1754238924533,0.926,3490.7,3490.5,4.86642]
[1754238924853,0.926,3490.6,3489.8,6.889]
[1754238925055,0.926,3490.5,3490.4,0.1432]
[1754238925422,0.926,3490.5,3490.4,4.413]
[1754238927147,0.4637,3490.5,3490.4,4.413]
[1754238927349,0.926,3490.8,3490.4,4.9975]
[1754238927550,0.12363937,3491.0,3490.4,4.9975]
[1754238927766,0.58593937,3491.0,3490.5,0.02864919]
[1754238927928,0.12363937,3491.0,3490.9,0.1432]
[1754238928238,0.12363937,3491.0,3490.9,4.5572]
[1754238928734,0.12363937,3491.0,3490.9,5.1072]
[1754238930658,0.12363937,3491.0,3490.9,5.5631]
[1754238932172,0.12363937,3491.0,3490.9,5.1072]
[1754238932376,0.12363937,3491.0,3490.9,5.1358459]
[1754238932543,0.12363937,3491.0,3490.9,5.69502049]
[1754238932746,0.12363937,3491.0,3490.9,6.12227459]
[1754238932972,0.12463937,3491.0,3490.9,6.12227459]
[1754238933642,0.92329371,3492.8,3491.0,0.55]
[1754238933984,0.92329371,3492.8,3490.9,6.12227459]
[1754238933985,0.4617,3492.5,3491.2,0.55]
[1754238934159,0.9142,3492.5,3492.0,0.1432]
[1754238934354,0.9142,3492.4,3492.2,0.1432]
[1754238934568,1.11547237,3493.5,3492.3,4.417]
[1754238934771,0.08964427,3493.4,3492.3,4.417]
[1754238935083,0.08964427,3493.3,3492.3,4.367]
[1754238935287,0.9142,3493.3,3492.3,4.367]
[1754238935491,0.08964427,3493.2,3492.9,0.1432]
[1754238935699,1.11547237,3493.5,3493.0,4.417]
[1754238935852,0.9142,3493.4,3493.0,4.417]
[1754238936048,0.9142,3493.3,3493.0,4.417]
[1754238936354,0.4525,3494.4,3493.2,0.55]
[1754238936584,0.4525,3494.4,3493.3,4.49]
[1754238936585,0.48122671,3494.3,3493.3,4.49]
[1754238936787,0.08961275,3494.3,3493.4,0.5786254]
[1754238936988,0.4525,3494.2,3492.9,0.55]
[1754238937319,3.0,3493.9,3492.6,0.1432]
[1754238937488,3.0,3493.9,3491.1,20.14608034]
[1754238937489,3.0,3493.5,3492.0,0.1432]
[1754238937786,0.55,3494.4,3489.8,0.60334695]
[1754238937787,3.0,3493.1,3491.6,0.1432]
[1754238938086,0.9142,3493.0,3491.6,0.1432]
[1754238938267,0.02872671,3493.1,3491.6,0.1432]
[1754238938453,0.9142,3492.9,3491.6,0.1432]
[1754238938653,0.9142,3492.8,3491.6,0.1432]
[1754238938853,0.94292671,3492.7,3491.3,4.511]
[1754238939054,0.02872671,3492.7,3491.5,0.1432]
[1754238939262,0.9142,3492.6,3491.5,0.1432]
[1754238939482,30.0,3493.2,3491.5,0.60862]
[1754238939794,0.9142,3492.5,3491.5,0.1432]
[1754238939981,30.0,3493.1,3491.5,0.1432]
[1754238940287,1.00385393,3493.0,3491.5,0.1432]
[1754238940584,0.9142,3492.9,3491.5,0.1432]
[1754238940785,3.0,3493.3,3491.5,0.1432]
[1754238940786,0.9142,3492.8,3491.5,0.1432]
[1754238941101,0.9142,3492.7,3491.5,0.1432]
[1754238941411,0.9142,3492.6,3491.6,4.507]
[1754238941702,0.9142,3492.5,3491.7,4.507]
[1754238941885,0.9142,3492.4,3491.7,4.507]
[1754238942081,10.0,3493.8,3491.7,4.507]
[1754238942082,0.9142,3492.3,3491.7,4.507]
[1754238942302,0.9142,3492.2,3491.7,4.507]
[1754238942605,0.9142,3492.1,3491.7,4.507]
[1754238942806,4.5058,3493.7,3491.7,4.507]
[1754238942807,0.9142,3492.0,3491.7,4.507]
[1754238942993,0.4617,3492.0,3491.7,4.507]
[1754238943310,0.9142,3491.9,3491.7,4.507]
[1754238943805,0.9142,3492.3,3491.7,4.507]
[1754238944308,0.4617,3492.2,3491.7,4.507]
[1754238944511,0.9142,3492.1,3491.7,4.507]
[1754238944707,0.4525,3492.7,3491.7,4.507]
[1754238944912,0.4617,3492.6,3491.9,0.1432]
[1754238945112,0.4525,3492.7,3492.0,0.55]
[1754238945291,0.4525,3492.7,3492.4,0.1432]
[1754238945491,0.9142,3492.7,3492.5,4.501]
[1754238945916,0.4525,3493.2,3492.5,4.52963278]
[1754238946212,0.9142,3493.2,3492.6,0.1432]
[1754238946416,0.9142,3493.2,3492.6,0.60762]
[1754238946745,0.4525,3493.9,3492.6,0.60762]
[1754238946904,1.00382778,3493.8,3493.1,0.1432]
[1754238947237,0.4617,3494.5,3493.8,0.1432]
[1754238947385,0.08961435,3494.4,3493.9,4.53762131]
[1754238947578,0.08961435,3494.5,3494.0,4.6522]
[1754238947816,0.57473437,3494.6,3494.0,0.1432]
[1754238948021,0.9142,3494.2,3494.0,0.1432]
[1754238948412,1.03643437,3494.6,3494.1,4.508]
[1754238948610,0.12223437,3494.6,3493.5,0.02862458]
[1754238948800,0.9142,3494.2,3493.6,4.6512]
[1754238949129,0.4617,3494.1,3493.6,0.1432]
[1754238949285,0.4525,3494.0,3493.7,4.509]
[1754238949635,0.9142,3493.9,3493.7,4.509]
[1754238949816,0.12223437,3494.6,3493.6,0.1432]
[1754238949817,0.9142,3493.8,3493.6,0.1432]
[1754238950117,0.12223437,3494.6,3493.7,4.508]
[1754238950312,0.12223437,3494.6,3493.4,7.0292]
[1754238950497,0.12223437,3494.6,3493.8,4.508]
[1754238950696,0.9142,3494.2,3493.4,7.0292]
[1754238950902,0.9142,3494.1,3493.5,4.507]
[1754238951118,0.12223437,3494.6,3493.5,4.507]
[1754238951325,0.9142,3494.0,3493.6,4.506]
[1754238951530,0.4617,3494.2,3493.6,4.506]
[1754238951713,0.9142,3494.2,3493.6,4.506]
[1754238951918,0.12223437,3494.6,3493.5,1.15362]
[1754238951919,0.9142,3494.1,3493.5,1.15362]
[1754238952212,0.9142,3494.1,3493.4,7.0292]
[1754238952213,0.9142,3494.0,3493.7,4.508]
[1754238952421,0.12223437,3494.6,3493.7,4.508]
[1754238952622,0.9142,3493.9,3493.7,4.508]
[1754238952926,0.4525,3494.4,3493.8,0.4508]
[1754238953223,0.12223437,3494.6,3493.9,0.17182131]
[1754238953425,0.12223437,3494.6,3493.9,0.62772131]
[1754238953585,0.12223437,3494.6,3493.9,0.17182131]
[1754238953927,0.12223437,3494.6,3493.9,0.5991]
[1754238954128,0.12223437,3494.6,3494.0,0.55579]
[1754238954500,0.12223437,3494.6,3494.0,1.01169]
[1754238954908,0.12223437,3494.6,3494.1,0.17181967]
[1754238955114,0.12223437,3494.6,3494.2,5.055]
[1754238955318,0.12223437,3494.6,3494.2,5.1982]
[1754238955500,0.12223437,3494.6,3494.2,1.46430097]
[1754238955700,0.12223437,3494.6,3494.2,5.34645]
[1754238955917,0.12223437,3494.6,3494.2,5.68371885]
[1754238956088,0.12223437,3494.6,3494.2,1.1491]
[1754238956291,0.12223437,3494.6,3494.2,5.6561]
[1754238956700,0.12223437,3494.6,3494.2,1.1491]
[1754238956911,0.12223437,3494.6,3494.2,5.9126233]
[1754238957431,0.12223437,3494.6,3494.2,4.9047233]
[1754238958225,0.12223437,3494.6,3494.2,4.7605233]
[1754238958226,0.4627,3494.3,3494.2,4.7605233]
[1754238958542,0.9152,3494.3,3494.2,4.503]
[1754238960603,0.001,3494.3,3494.2,4.503]
[1754238960806,0.001,3494.3,3494.2,0.1432]
[1754238961235,0.001,3494.3,3494.2,4.6442]
[1754238961419,0.001,3494.3,3494.2,0.60762]
[1754238961626,0.915,3494.3,3494.2,4.502]
[1754238961825,0.001,3494.3,3494.2,4.502]
[1754238962012,0.001,3494.3,3494.2,4.6452]
[1754238962194,0.001,3494.3,3494.2,0.1432]
[1754238962399,0.915,3494.3,3494.2,4.501]
[1754238962931,0.001,3494.3,3494.2,4.501]
[1754238963136,0.915,3494.3,3493.9,0.1432]
[1754238963318,0.001,3494.3,3494.2,4.502]
[1754238963915,0.915,3494.3,3494.2,4.502]
[1754238964617,0.001,3494.3,3494.2,4.502]
[1754238964920,0.001,3494.3,3494.2,0.5934]
[1754238965119,0.915,3494.3,3494.0,0.1432]
[1754238965321,0.001,3494.3,3494.1,4.501]
[1754238965630,0.914,3494.2,3494.0,0.1432]
[1754238965829,0.914,3494.2,3494.1,4.5]
[1754238966037,0.914,3494.2,3494.1,4.96432]
[1754238966227,0.914,3494.2,3494.1,4.499]
[1754238967556,0.4576,3494.2,3494.1,4.499]
[1754238967853,0.001,3494.3,3494.1,4.499]
[1754238968051,0.001,3494.3,3494.2,0.02861885]
[1754238968356,0.07323437,3494.6,3494.2,0.1432]
[1754238968650,0.914,3494.5,3494.2,0.60742]
[1754238968854,0.07323437,3494.6,3494.3,7.499]
[1754238968855,0.914,3494.4,3494.3,7.499]
[1754238969216,0.07323437,3494.6,3494.4,0.55]
[1754238969418,0.07323437,3494.6,3494.5,0.8049]
[1754238969621,0.07323437,3494.6,3494.5,0.9481]
[1754238969830,0.07323437,3494.6,3494.5,1.9555]
[1754238970155,0.07323437,3494.6,3494.5,1.4981]
[1754238970457,0.07323437,3494.6,3494.5,5.4581]
[1754238971837,0.07323437,3494.6,3494.5,0.9481]
[1754238972160,0.07323437,3494.6,3494.5,4.6502]
[1754238972858,0.07323437,3494.6,3494.5,0.1432]
[1754238973059,0.07323437,3494.6,3494.5,4.6502]
[1754238974264,0.07323437,3494.6,3494.5,5.22881639]
[1754238974466,0.07323437,3494.6,3494.5,5.68621639]
[1754238974761,0.07323437,3494.6,3494.5,6.52622164]
[1754238974929,0.07323437,3494.6,3494.5,1.01182164]
[1754238975134,0.53083437,3494.6,3494.5,4.6452]
[1754238975438,0.53083437,3494.6,3494.5,0.1432]
[1754238975627,0.07323437,3494.6,3494.5,4.502]
[1754238975830,0.52963437,3494.6,3494.5,4.502]
[1754238976067,0.98723437,3494.6,3494.5,4.502]
[1754238976946,0.98723437,3494.6,3494.3,3.0]
[1754238977255,0.914,3494.5,3494.4,4.503]
[1754238979141,1.00359084,3494.5,3494.4,4.503]
[1754238979467,0.4576,3494.5,3494.4,4.503]
[1754238979867,0.07423437,3494.6,3494.4,4.503]
[1754238980164,0.07423437,3494.6,3494.5,0.1432]
[1754238980733,0.07423437,3494.6,3494.5,1.1506]
[1754238981240,0.07423437,3494.6,3494.5,5.6516]
[1754238983676,0.07423437,3494.6,3494.5,0.6932]
[1754238983881,0.07423437,3494.6,3494.5,5.682722]
[1754238984077,0.07423437,3494.6,3494.5,1.184722]
[1754238984284,0.07423437,3494.6,3494.5,5.682722]
[1754238984590,0.07423437,3494.6,3494.5,1.184722]
[1754238984887,0.98823437,3494.6,3494.5,5.131722]
[1754238985581,0.98823437,3494.6,3494.5,5.130722]
[1754238985875,0.98823437,3494.6,3494.5,4.987522]
[1754238986282,0.98823437,3494.6,3494.5,4.495]
[1754238990448,0.98823437,3494.6,3494.5,4.488]
[1754238990779,0.98823437,3494.6,3494.4,0.1432]
[1754238990985,0.9107,3494.5,3494.3,3.0]
[1754238991194,0.07423437,3494.6,3494.4,4.487]
[1754238991889,0.9107,3494.5,3494.3,3.0]
[1754238992192,0.07423437,3494.6,3494.4,4.487]
[1754238992564,0.07423437,3494.6,3494.3,3.0]
[1754238992565,0.07423437,3494.6,3494.5,4.486]
[1754238992890,0.07423437,3494.6,3494.3,3.0]
[1754238993293,1.00028964,3494.5,3494.3,3.0]
[1754238993470,0.07423437,3494.6,3494.4,4.484]
[1754238993690,0.08959878,3494.5,3494.4,4.484]
[1754238994068,1.00029878,3494.5,3494.4,4.484]
[1754238994490,30.0,3495.7,3494.4,4.484]
[1754238994804,30.0,3495.5,3494.4,4.484]
[1754238995299,30.0,3495.5,3494.5,4.483]
[1754238995594,30.0,3495.5,3494.5,4.482]
[1754238996370,3.9107,3495.4,3494.5,4.482]
[1754238996568,3.0,3495.5,3494.5,4.482]
[1754238996869,0.9107,3495.3,3494.5,4.482]
[1754238997094,0.9107,3495.2,3494.5,4.482]
[1754238997297,0.9107,3495.1,3494.5,4.482]
[1754238997467,1.005,3495.4,3494.5,4.482]
[1754238997668,0.9107,3495.0,3494.5,4.482]
[1754238997868,1.30177,3494.9,3494.5,4.482]
[1754238998067,0.4457,3494.8,3493.8,0.1432]
[1754238998265,0.465,3494.7,3493.5,4.481]
[1754238998470,0.465,3494.7,3493.6,1.0486]
[1754238998471,0.9107,3494.7,3493.6,1.0486]
[1754238998708,0.9107,3494.7,3493.6,1.0265]
[1754238999000,0.9107,3494.7,3493.7,0.4573]
[1754238999182,0.465,3494.6,3493.7,0.4573]
[1754238999384,0.465,3494.6,3494.5,0.002]
[1754238999706,0.9107,3494.6,3494.5,0.002]
[1754239001902,0.39107,3494.9,3494.5,0.002]
[1754239002104,0.001,3495.1,3494.5,0.4593]
[1754239002271,0.001,3495.1,3494.5,5.3685]
[1754239002476,0.001,3495.1,3494.6,0.55117]
[1754239003002,0.001,3495.1,3494.7,0.4573]
[1754239003603,0.4467,3495.1,3494.7,0.4573]
[1754239003806,0.001,3495.1,3494.6,0.55117]
[1754239004006,0.001,3495.1,3494.8,0.4573]
[1754239004406,0.001,3495.1,3494.6,1.12957]
[1754239004597,0.001,3495.1,3494.9,0.4573]
[1754239005202,0.001,3495.1,3495.0,0.4573]
[1754239005506,0.001,3495.1,3495.0,4.9313]
[1754239007508,0.001,3495.1,3495.0,4.9599123]
[1754239008324,0.001,3495.5,3495.0,4.9599123]
[1754239008325,0.001,3495.5,3495.0,25.65599264]
[1754239008480,0.001,3495.5,3495.3,0.55]
[1754239008819,0.001,3495.5,3495.2,3.0]
[1754239008820,0.5,3495.9,3495.5,0.55]
[1754239009017,0.5,3495.9,3495.7,0.55]
[1754239009197,0.5,3495.9,3495.8,1.03590575]
[1754239009398,0.5,3495.9,3495.8,2.05012]
[1754239010223,0.5,3495.9,3495.8,2.07872575]
[1754239012580,0.5,3495.9,3495.8,1.64352575]
[1754239012785,0.5,3495.9,3495.8,0.1432]
[1754239012978,0.5,3495.9,3495.8,4.475]
[1754239014281,0.5,3495.9,3495.7,0.1432]
[1754239014631,0.9107,3495.8,3495.2,0.55]
[1754239014786,0.9107,3495.8,3495.4,0.55]
[1754239014987,0.465,3495.7,3495.5,4.473]
[1754239015220,0.9107,3495.6,3495.5,4.473]
[1754239015414,0.9107,3495.6,3495.3,0.1432]
[1754239015616,0.5,3495.9,3495.4,4.473]
[1754239015617,0.9107,3495.5,3495.4,4.473]
[1754239016123,0.9107,3495.5,3494.7,0.560557]
[1754239016352,0.9107,3495.4,3494.7,0.1432]
[1754239016504,0.9107,3495.3,3494.8,4.473]
[1754239016844,0.9107,3495.2,3494.8,4.473]
[1754239017141,0.9107,3495.1,3494.6,0.1432]
[1754239017347,0.5,3495.9,3494.6,0.1432]
[1754239017348,0.5,3495.9,3494.7,4.472]
[1754239017548,0.9107,3495.0,3494.6,0.1432]
[1754239017847,0.9107,3494.9,3494.7,4.472]
[1754239018032,0.5,3495.9,3494.7,4.472]
[1754239018236,0.9107,3494.8,3494.7,4.472]
[1754239019133,0.9107,3494.8,3494.7,4.47]
[1754239020657,0.9107,3494.8,3494.5,0.002]
[1754239020964,0.5,3495.9,3494.5,0.002]
[1754239020965,0.898,3494.7,3494.5,0.002]
[1754239021252,0.898,3494.7,3494.5,4.471]
[1754239021436,0.898,3495.3,3494.6,0.002]
[1754239021762,0.4328,3495.3,3494.6,0.03061557]
[1754239021965,0.4328,3495.3,3494.7,0.4857]
[1754239022325,0.4328,3495.3,3494.8,0.02861394]
[1754239022555,0.4328,3495.3,3494.9,4.472]
[1754239022918,0.898,3495.3,3494.9,4.472]
[1754239023334,0.4328,3495.2,3494.9,4.472]
[1754239024017,0.4652,3495.2,3494.9,4.472]
[1754239024219,0.4328,3495.1,3494.9,4.472]
[1754239024850,0.4328,3495.1,3494.7,0.51019]
[1754239025051,0.898,3495.0,3494.8,4.468]
[1754239025228,0.898,3494.9,3494.8,4.468]
[1754239025429,0.898,3494.9,3494.7,4.471]
[1754239025747,0.898,3494.8,3494.7,4.471]
[1754239027219,0.898,3494.8,3494.6,0.002]
[1754239027477,3.0,3495.5,3494.7,4.471]
[1754239027651,1.38959,3495.4,3494.8,4.468]
[1754239027946,0.52239,3495.3,3494.6,0.002]
[1754239028149,0.98759,3495.3,3494.8,4.468]
[1754239028330,0.898,3495.3,3494.8,4.468]
[1754239028532,0.898,3495.2,3494.8,4.468]
[1754239028756,0.898,3495.1,3494.8,4.468]
[1754239028923,3.0,3495.5,3494.8,4.468]
[1754239029124,0.98758432,3495.4,3494.7,4.466]
[1754239029323,0.08958432,3495.3,3494.7,4.466]
[1754239029569,1.20695843,3495.3,3494.7,4.466]
[1754239029744,0.74175843,3495.3,3494.7,4.466]
[1754239030059,0.98758365,3495.2,3494.7,4.466]
[1754239030363,0.30895843,3495.3,3494.6,0.002]
[1754239030364,0.898,3495.1,3494.6,0.002]
[1754239030722,0.898,3495.0,3494.6,0.002]
[1754239031252,0.30895843,3495.3,3494.6,0.002]
[1754239031461,3.0,3495.5,3494.6,0.002]
[1754239031462,1.22889584,3495.2,3494.6,0.002]
[1754239031867,0.08958513,3495.1,3494.6,0.002]
[1754239032166,0.898,3495.1,3494.6,0.002]
[1754239032460,0.4328,3495.0,3494.6,0.002]
[1754239032620,0.898,3495.0,3494.6,0.002]
[1754239032824,0.898,3494.9,3494.6,0.002]
[1754239033244,0.898,3494.8,3494.6,0.002]
[1754239033737,0.898,3494.7,3494.6,0.002]
[1754239035247,0.4328,3494.7,3494.6,0.002]
[1754239037853,3.0,3495.5,3494.6,0.002]
[1754239038159,0.898,3495.7,3494.6,1.5228]
[1754239038347,0.0895733,3495.6,3494.6,1.06571557]
[1754239038554,0.0895733,3495.6,3494.7,0.4857]
[1754239038756,0.0895733,3495.6,3494.8,0.15248]
[1754239038954,0.898,3495.7,3494.9,0.4857]
[1754239040762,0.898,3495.7,3494.9,1.346012]
[1754239041264,0.08957007,3495.6,3494.9,1.346012]
[1754239041636,0.08957007,3495.6,3495.0,0.4857]
[1754239043469,0.08957007,3495.6,3495.0,1.12958059]
[1754239044139,0.08957007,3495.5,3495.1,4.459]
[1754239044341,0.08957007,3495.4,3494.6,0.1452]
[1754239044540,0.55477007,3495.3,3494.9,4.457]
[1754239044753,0.55477007,3495.3,3494.6,0.002]
[1754239044754,0.52237007,3495.2,3494.6,0.002]
[1754239044953,0.08957007,3495.1,3494.8,4.458]
[1754239045142,0.08957007,3495.0,3494.8,4.458]
[1754239045362,0.98757007,3494.9,3494.8,4.458]
[1754239045861,0.98757007,3494.9,3494.6,0.002]
[1754239046079,0.98757007,3494.8,3494.6,0.002]
[1754239046289,0.08957007,3494.7,3494.6,0.002]
[1754239046493,0.08959639,3494.7,3494.6,0.002]
[1754239046804,0.98759639,3494.7,3494.6,0.002]
[1754239052165,0.98759423,3494.7,3494.6,0.002]
[1754239062814,0.08959423,3494.7,3494.6,0.002]
[1754239063017,0.08959423,3494.7,3494.6,0.8989]
[1754239063220,0.08959423,3495.2,3494.6,0.8989]
[1754239063510,0.08959423,3495.1,3494.7,0.4512]
[1754239063710,0.08959423,3495.0,3494.7,0.4512]
[1754239064014,0.08959423,3494.9,3494.7,0.4512]
[1754239064310,0.08959423,3494.8,3494.7,0.4512]
[1754239064461,1.005,3495.2,3494.6,0.002]
[1754239064462,0.08959423,3495.1,3494.6,0.002]
[1754239064661,0.08959423,3495.0,3494.6,0.002]
[1754239064902,0.4564,3494.8,3494.6,0.002]
[1754239065106,0.4577,3495.0,3494.6,0.002]
[1754239065284,0.08959156,3494.9,3494.6,0.002]
[1754239065695,0.08959156,3494.9,3494.6,0.4532]
[1754239067362,0.08959156,3494.9,3494.6,0.002]
[1754239067765,0.08959156,3495.2,3494.7,0.4512]
[1754239068077,0.08959156,3495.1,3494.8,0.4512]
[1754239068277,0.08959156,3495.0,3494.8,0.4512]
[1754239068481,0.08959156,3494.9,3494.8,0.4512]
[1754239068678,3.0,3495.3,3494.6,0.002]
[1754239068679,0.08959156,3495.1,3494.9,0.4512]
[1754239068887,0.08959156,3495.2,3494.9,0.4512]
[1754239069199,0.08959156,3495.1,3495.0,0.4512]
[1754239072711,0.08959156,3495.2,3495.0,0.8969]
[1754239072919,0.08959156,3495.1,3494.8,0.02861394]
[1754239073120,0.08959156,3495.7,3494.9,4.437]
[1754239073303,0.08959156,3495.6,3494.9,4.437]
[1754239073620,0.08959156,3495.5,3495.0,0.8969]
[1754239073767,0.08959156,3495.4,3495.0,0.4457]
[1754239073967,0.08959156,3495.3,3495.1,0.4512]
[1754239074285,0.08959156,3495.7,3495.2,0.4512]
[1754239074486,1.00369156,3495.6,3495.1,4.436]
[1754239074709,0.08959156,3495.5,3495.2,0.4512]
[1754239074901,0.08959156,3495.4,3495.3,0.4512]
[1754239075417,0.001,3495.8,3495.3,0.4512]
[1754239075418,0.08959156,3495.7,3495.3,0.4512]
[1754239075704,0.08959156,3495.6,3495.3,0.8969]
[1754239075883,0.08959156,3495.5,3495.4,0.4512]
[1754239076300,0.08959156,3495.7,3495.4,0.4512]
[1754239076498,0.001,3495.8,3495.5,0.4512]
[1754239076499,0.08959156,3495.6,3495.5,0.4512]
[1754239077114,0.08959156,3495.6,3495.5,0.8969]
[1754239077425,0.08959156,3495.7,3495.5,0.8969]
[1754239077597,0.08959156,3495.7,3495.5,0.4457]
[1754239077801,0.08959156,3495.7,3495.6,0.4512]
[1754239078000,1.00369156,3495.7,3495.1,6.3216442]
[1754239078204,0.08959156,3495.6,3495.2,0.64648442]
[1754239078402,0.08959156,3495.6,3495.3,0.4512]
[1754239079091,1.02889156,3495.6,3495.2,0.64648442]
[1754239079425,1.02889156,3495.5,3495.3,4.434]
[1754239079624,0.001,3495.8,3495.4,0.4653]
[1754239079823,0.08957023,3495.7,3495.4,0.4653]
[1754239080188,0.08957023,3495.6,3495.4,0.4653]
[1754239080395,1.02887023,3495.7,3495.3,4.434]
[1754239080596,1.02887115,3495.6,3495.0,0.860268]
[1754239080817,0.08957115,3495.5,3494.9,4.433]
[1754239081030,0.9393,3495.5,3494.9,4.433]
[1754239081193,0.08957115,3495.4,3494.9,4.433]
[1754239081708,0.9393,3495.3,3494.9,4.8983]
[1754239082031,0.08957811,3495.2,3494.9,4.8983]
[1754239082741,0.08957871,3495.2,3494.8,0.860337]
[1754239082899,0.4647,3495.1,3494.9,4.431]
[1754239083093,0.9393,3495.1,3494.9,4.431]
[1754239083489,0.4647,3495.0,3494.9,4.431]
[1754239083691,0.9393,3495.0,3494.9,4.431]
[1754239084211,0.9393,3495.3,3494.7,0.4653]
[1754239084410,0.08958092,3495.2,3494.7,0.4653]
[1754239084623,0.08958092,3495.2,3494.8,0.4653]
[1754239084624,0.55428092,3495.2,3494.8,0.4653]
[1754239084820,0.08958146,3495.1,3494.7,4.43]
[1754239084999,0.9393,3495.0,3494.7,4.429]
[1754239085199,0.9393,3494.9,3494.7,4.429]
[1754239085516,0.9393,3494.8,3494.6,0.002]
[1754239085717,0.9393,3494.8,3494.6,4.431]
[1754239086433,0.4647,3494.8,3494.6,4.431]
[1754239086837,0.4647,3494.8,3494.6,0.002]
[1754239090335,0.001,3495.1,3494.6,0.002]
[1754239090517,1.0288871,3495.0,3494.6,0.002]
[1754239090717,1.0288871,3494.9,3494.6,0.002]
[1754239090926,1.0288871,3494.8,3494.6,0.002]
[1754239091126,1.0288871,3494.7,3494.6,0.002]
[1754239095085,1.43177581,3494.7,3494.6,0.002]
[1754239095530,1.0288871,3494.7,3494.6,0.002]
[1754239104139,0.0895871,3494.7,3494.6,0.002]
[1754239104445,0.0895871,3494.8,3494.6,0.002]
[1754239104646,0.08959638,3494.7,3494.6,0.002]
[1754239104891,0.08959638,3494.8,3494.6,0.002]
[1754239105076,0.08959638,3494.7,3494.6,0.002]
[1754239105503,0.08959638,3494.8,3494.6,0.002]
[1754239105765,0.08959638,3494.8,3494.6,0.913]
[1754239105944,0.08959638,3495.0,3494.7,0.4653]
[1754239106138,0.08959638,3494.9,3494.6,0.002]
[1754239106346,0.08959638,3495.0,3494.6,0.4673]
[1754239106554,0.08959638,3495.0,3494.7,0.4653]
[1754239106749,0.08959638,3495.0,3494.8,0.02861394]
[1754239106936,0.001,3495.1,3494.9,0.911]
[1754239107342,0.001,3495.1,3494.9,0.4457]
[1754239107681,0.001,3495.1,3495.0,0.911]
[1754239107876,0.001,3495.1,3495.0,0.4653]
[1754239108776,0.001,3495.1,3495.0,0.911]
[1754239109379,0.001,3495.1,3495.0,1.0542]
[1754239109560,0.001,3495.1,3495.0,1.208503]
[1754239110479,0.001,3495.1,3495.0,0.619603]